[Event "Early-Titled-Tuesday-Blitz-March-05-2024"]
[Site "Chess.com"]
[Date "2024.03.05"]
[Round "4"]
[White "Igor_Lysyj"]
[Black "TitarovVasiliYouTube"]
[Result "0-1"]
[WhiteElo "2814"]
[BlackElo "2528"]
[TimeControl "180+1"]
[EndTime "8:41:45 PST"]
[Termination "TitarovVasiliYouTube won by resignation"]

1. d4 {[%clk 0:03:00.2]} 1... d5 {[%clk 0:02:59.2]} 2. c4 {[%clk 0:02:59.7]}
2... e6 {[%clk 0:02:59.8]} 3. Nf3 {[%clk 0:02:59.2]} 3... Nf6 {[%clk 0:02:57.6]}
4. g3 {[%clk 0:02:58.9]} 4... Be7 {[%clk 0:02:57.2]} 5. Bg2 {[%clk 0:02:57.9]}
5... O-O {[%clk 0:02:56.6]} 6. O-O {[%clk 0:02:58.1]} 6... dxc4 {[%clk
0:02:57.1]} 7. Na3 {[%clk 0:02:57.7]} 7... Bxa3 {[%clk 0:02:46]} 8. bxa3 {[%clk
0:02:57.3]} 8... Nc6 {[%clk 0:02:41.6]} 9. a4 {[%clk 0:02:56.1]} 9... Re8 {[%clk
0:02:36.9]} 10. Bb2 {[%clk 0:02:52.2]} 10... Bd7 {[%clk 0:02:15.7]} 11. Qc2
{[%clk 0:02:48]} 11... Na5 {[%clk 0:01:49.7]} 12. Ne5 {[%clk 0:02:29.8]} 12...
Nd5 {[%clk 0:01:43.8]} 13. e4 {[%clk 0:02:26.5]} 13... Nb6 {[%clk 0:01:40.6]}
14. Nxd7 {[%clk 0:02:15.7]} 14... Qxd7 {[%clk 0:01:41.1]} 15. Bc3 {[%clk
0:02:16.2]} 15... Nc6 {[%clk 0:01:41]} 16. a5 {[%clk 0:02:12.4]} 16... Nc8
{[%clk 0:01:36.6]} 17. Rfd1 {[%clk 0:02:11]} 17... Nd6 {[%clk 0:01:33.2]} 18. d5
{[%clk 0:02:01.6]} 18... exd5 {[%clk 0:01:29]} 19. Rxd5 {[%clk 0:01:59.2]} 19...
Qe6 {[%clk 0:01:22]} 20. e5 {[%clk 0:01:48.8]} 20... Nf5 {[%clk 0:01:14.2]} 21.
Rad1 {[%clk 0:01:37.3]} 21... Nfe7 {[%clk 0:01:07.2]} 22. Rd7 {[%clk 0:01:32.8]}
22... Nxe5 {[%clk 0:01:03.6]} 23. Rxc7 {[%clk 0:01:32.7]} 23... Nd3 {[%clk
0:01:01.1]} 24. Rxb7 {[%clk 0:01:08.7]} 24... Rad8 {[%clk 0:00:59.1]} 25. Rxa7
{[%clk 0:00:57.7]} 25... Nd5 {[%clk 0:00:59]} 26. Bxd5 {[%clk 0:00:46.8]} 26...
Qxd5 {[%clk 0:00:51.3]} 27. a6 {[%clk 0:00:34.7]} 27... Qf3 {[%clk 0:00:50.9]}
28. Rf1 {[%clk 0:00:14.3]} 28... Re2 {[%clk 0:00:43.1]} 29. Qd1 {[%clk
0:00:14.3]} 29... Rde8 {[%clk 0:00:35.2]} 30. Bd4 {[%clk 0:00:14.4]} 30... Ne1
{[%clk 0:00:25.9]} 0-1

[Event "Early-Titled-Tuesday-Blitz-March-05-2024"]
[Site "Chess.com"]
[Date "2024.03.05"]
[Round "4"]
[White "maximnovik"]
[Black "salzikis"]
[Result "1-0"]
[WhiteElo "2602"]
[BlackElo "2410"]
[TimeControl "180+1"]
[EndTime "8:41:46 PST"]
[Termination "maximnovik won by resignation"]

1. e4 {[%clk 0:02:57.1]} 1... e5 {[%clk 0:02:59.6]} 2. Nf3 {[%clk 0:02:56.3]}
2... Nf6 {[%clk 0:03:00.3]} 3. Nxe5 {[%clk 0:02:54.9]} 3... d6 {[%clk
0:03:00.6]} 4. Nf3 {[%clk 0:02:53.4]} 4... Nxe4 {[%clk 0:03:01.1]} 5. d3 {[%clk
0:02:54]} 5... Nf6 {[%clk 0:03:00]} 6. d4 {[%clk 0:02:54.6]} 6... d5 {[%clk
0:03:00]} 7. Bd3 {[%clk 0:02:55]} 7... Bd6 {[%clk 0:03:00.3]} 8. Qe2+ {[%clk
0:02:55.5]} 8... Qe7 {[%clk 0:03:00.1]} 9. Qxe7+ {[%clk 0:02:55.4]} 9... Bxe7
{[%clk 0:02:58.2]} 10. Bf4 {[%clk 0:02:50.2]} 10... c6 {[%clk 0:02:57.7]} 11.
O-O {[%clk 0:02:47.7]} 11... O-O {[%clk 0:02:57.8]} 12. Re1 {[%clk 0:02:47.4]}
12... Re8 {[%clk 0:02:53.1]} 13. c4 {[%clk 0:02:43.2]} 13... dxc4 {[%clk
0:02:45.2]} 14. Bxc4 {[%clk 0:02:42.7]} 14... Nbd7 {[%clk 0:02:45.9]} 15. Ng5
{[%clk 0:02:14.2]} 15... Nd5 {[%clk 0:02:41.2]} 16. Bxd5 {[%clk 0:02:12.8]}
16... cxd5 {[%clk 0:02:41.2]} 17. Bd6 {[%clk 0:02:10]} 17... h6 {[%clk 0:02:18]}
18. Rxe7 {[%clk 0:01:58.9]} 18... Rxe7 {[%clk 0:02:17.3]} 19. Bxe7 {[%clk
0:01:59.2]} 19... hxg5 {[%clk 0:02:18]} 20. Bxg5 {[%clk 0:01:54.6]} 20... f6
{[%clk 0:02:17.3]} 21. Bf4 {[%clk 0:01:53]} 21... Nb6 {[%clk 0:02:13.1]} 22. Nc3
{[%clk 0:01:53.4]} 22... Be6 {[%clk 0:02:13.6]} 23. Re1 {[%clk 0:01:52.2]} 23...
Kf7 {[%clk 0:02:12.4]} 24. h4 {[%clk 0:01:47.7]} 24... a6 {[%clk 0:02:11.3]} 25.
b3 {[%clk 0:01:43.3]} 25... Rc8 {[%clk 0:02:10.7]} 26. Re3 {[%clk 0:01:43]}
26... Nd7 {[%clk 0:02:04.5]} 27. f3 {[%clk 0:01:39.6]} 27... b5 {[%clk
0:02:04.5]} 28. Kf2 {[%clk 0:01:33.7]} 28... Nb6 {[%clk 0:02:04.6]} 29. Bd6
{[%clk 0:01:27.5]} 29... Rc6 {[%clk 0:02:00.5]} 30. Bc5 {[%clk 0:01:27.1]} 30...
Nd7 {[%clk 0:02:01.1]} 31. b4 {[%clk 0:01:22.7]} 31... Nb6 {[%clk 0:01:45.2]}
32. Bxb6 {[%clk 0:01:17.5]} 32... Rxb6 {[%clk 0:01:44.9]} 33. Ne2 {[%clk
0:01:17.4]} 33... g5 {[%clk 0:01:39.7]} 34. hxg5 {[%clk 0:01:11.8]} 34... fxg5
{[%clk 0:01:40]} 35. Rc3 {[%clk 0:01:12.3]} 35... a5 {[%clk 0:01:39]} 36. a3
{[%clk 0:01:07.9]} 36... axb4 {[%clk 0:01:39.2]} 37. axb4 {[%clk 0:01:07]} 37...
Ke7 {[%clk 0:01:36.6]} 38. Rc5 {[%clk 0:01:06.9]} 38... Kd6 {[%clk 0:01:36.5]}
39. Nc3 {[%clk 0:01:06.8]} 39... Rb8 {[%clk 0:01:27.7]} 40. Nxb5+ {[%clk
0:01:05.1]} 40... Kd7 {[%clk 0:01:28]} 41. Ke3 {[%clk 0:00:58.5]} 41... Rb7
{[%clk 0:01:26.3]} 42. g4 {[%clk 0:00:55.5]} 42... Rb8 {[%clk 0:01:25.6]} 43.
Nc3 {[%clk 0:00:49.8]} 43... Rxb4 {[%clk 0:01:24.3]} 44. Nxd5 {[%clk 0:00:50.3]}
44... Rb3+ {[%clk 0:01:22]} 45. Ke4 {[%clk 0:00:50.7]} 45... Kd6 {[%clk
0:01:18.9]} 46. Ne3 {[%clk 0:00:49.2]} 46... Bd7 {[%clk 0:01:03.7]} 47. Rxg5
{[%clk 0:00:39.8]} 47... Bc6+ {[%clk 0:01:03.8]} 48. d5 {[%clk 0:00:36.8]} 48...
Rb4+ {[%clk 0:01:02.7]} 49. Kd3 {[%clk 0:00:36]} 49... Bb5+ {[%clk 0:01:00.8]}
50. Kc3 {[%clk 0:00:34.3]} 50... Rf4 {[%clk 0:00:56.5]} 51. Nf5+ {[%clk
0:00:33]} 51... Kxd5 {[%clk 0:00:54.5]} 52. Nd4+ {[%clk 0:00:32.1]} 52... Kd6
{[%clk 0:00:50.4]} 53. Rxb5 {[%clk 0:00:31.8]} 53... Ke7 {[%clk 0:00:45.8]} 54.
Rf5 {[%clk 0:00:31]} 1-0

[Event "Early-Titled-Tuesday-Blitz-March-05-2024"]
[Site "Chess.com"]
[Date "2024.03.05"]
[Round "4"]
[White "betta2004"]
[Black "Christ_is_alive"]
[Result "1-0"]
[WhiteElo "2555"]
[BlackElo "2359"]
[TimeControl "180+1"]
[EndTime "8:41:48 PST"]
[Termination "betta2004 won on time"]

1. d4 {[%clk 0:03:00.9]} 1... Nf6 {[%clk 0:02:58.6]} 2. Nc3 {[%clk 0:03:00.9]}
2... d5 {[%clk 0:02:57.2]} 3. Bg5 {[%clk 0:03:00.7]} 3... Nbd7 {[%clk
0:02:56.4]} 4. Qd3 {[%clk 0:03:01.4]} 4... e6 {[%clk 0:02:44.1]} 5. Nf3 {[%clk
0:02:57.1]} 5... c5 {[%clk 0:02:42.1]} 6. e4 {[%clk 0:02:56]} 6... h6 {[%clk
0:02:19.8]} 7. Bxf6 {[%clk 0:02:50.7]} 7... Nxf6 {[%clk 0:02:20.7]} 8. dxc5
{[%clk 0:02:44.6]} 8... Nxe4 {[%clk 0:02:04.5]} 9. Nxe4 {[%clk 0:02:39.4]} 9...
dxe4 {[%clk 0:02:04.6]} 10. Qxd8+ {[%clk 0:02:26.6]} 10... Kxd8 {[%clk
0:02:05.5]} 11. Ne5 {[%clk 0:02:27.3]} 11... Ke7 {[%clk 0:01:44.8]} 12. Nc4
{[%clk 0:02:01]} 12... Bd7 {[%clk 0:01:37.6]} 13. O-O-O {[%clk 0:01:59.7]} 13...
Bc6 {[%clk 0:01:37.2]} 14. Nd6 {[%clk 0:01:59.4]} 14... g5 {[%clk 0:01:18.5]}
15. b4 {[%clk 0:01:58.7]} 15... Bg7 {[%clk 0:01:08.9]} 16. b5 {[%clk 0:01:59]}
16... Bd7 {[%clk 0:00:48.4]} 17. Nxb7 {[%clk 0:01:56.5]} 17... Rhc8 {[%clk
0:00:43.3]} 18. c6 {[%clk 0:01:51.9]} 18... Be8 {[%clk 0:00:43.6]} 19. Nd6
{[%clk 0:01:51.1]} 19... Rc7 {[%clk 0:00:40.6]} 20. Be2 {[%clk 0:01:45.6]} 20...
Be5 {[%clk 0:00:38.7]} 21. Nc4 {[%clk 0:01:43.4]} 21... Bf4+ {[%clk 0:00:36]}
22. Kb2 {[%clk 0:01:42.6]} 22... Rb8 {[%clk 0:00:36.6]} 23. a4 {[%clk
0:01:42.1]} 23... a6 {[%clk 0:00:35.4]} 24. Na5 {[%clk 0:01:38.9]} 24... Bxc6
{[%clk 0:00:31.9]} 25. c4 {[%clk 0:01:36.2]} 25... axb5 {[%clk 0:00:22.4]} 26.
axb5 {[%clk 0:01:33.9]} 26... Be8 {[%clk 0:00:14.9]} 27. Kc3 {[%clk 0:01:25.5]}
27... Be5+ {[%clk 0:00:14.1]} 28. Kb3 {[%clk 0:01:25.6]} 28... f5 {[%clk
0:00:12.7]} 29. Rb1 {[%clk 0:01:18.3]} 29... Bf7 {[%clk 0:00:11.2]} 30. h4
{[%clk 0:01:18.1]} 30... g4 {[%clk 0:00:10.6]} 31. Rhc1 {[%clk 0:01:12.3]} 31...
Bd4 {[%clk 0:00:10.3]} 32. Ka4 {[%clk 0:01:07.3]} 32... Kf6 {[%clk 0:00:08.2]}
33. Nc6 {[%clk 0:01:05.7]} 33... Ra8+ {[%clk 0:00:07.6]} 34. Kb4 {[%clk
0:01:05.9]} 34... Bxf2 {[%clk 0:00:06.6]} 35. c5 {[%clk 0:01:02.6]} 35... Bg3
{[%clk 0:00:05.1]} 36. Na5 {[%clk 0:00:55.4]} 36... Be8 {[%clk 0:00:05.3]} 37.
b6 {[%clk 0:00:55.2]} 37... Rcc8 {[%clk 0:00:04.6]} 38. b7 {[%clk 0:00:54.4]}
38... Rcb8 {[%clk 0:00:05.1]} 39. c6 {[%clk 0:00:54.4]} 39... Bxc6 {[%clk
0:00:03.7]} 40. Rxc6 {[%clk 0:00:55.3]} 40... Ra7 {[%clk 0:00:03.4]} 41. Ba6
{[%clk 0:00:50.7]} 41... Bf4 {[%clk 0:00:03.4]} 42. Rc8 {[%clk 0:00:46]} 42...
Bd2+ {[%clk 0:00:03.4]} 43. Kb5 {[%clk 0:00:41.9]} 43... Rxa6 {[%clk 0:00:03.5]}
44. Kxa6 {[%clk 0:00:41.4]} 1-0

[Event "Early-Titled-Tuesday-Blitz-March-05-2024"]
[Site "Chess.com"]
[Date "2024.03.05"]
[Round "4"]
[White "FMStan15"]
[Black "kyuotbi"]
[Result "1-0"]
[WhiteElo "2088"]
[BlackElo "2292"]
[TimeControl "180+1"]
[EndTime "8:41:50 PST"]
[Termination "FMStan15 won by resignation"]

1. e4 {[%clk 0:02:43.4]} 1... e5 {[%clk 0:02:59.8]} 2. Nf3 {[%clk 0:02:42.2]}
2... Nc6 {[%clk 0:03:00]} 3. Bb5 {[%clk 0:02:41.1]} 3... a6 {[%clk 0:02:59.6]}
4. Bxc6 {[%clk 0:02:41.4]} 4... dxc6 {[%clk 0:02:58.7]} 5. O-O {[%clk
0:02:42.3]} 5... f6 {[%clk 0:02:51.8]} 6. d4 {[%clk 0:02:40.5]} 6... exd4 {[%clk
0:02:50.1]} 7. Nxd4 {[%clk 0:02:40.6]} 7... Ne7 {[%clk 0:02:31.9]} 8. Nc3 {[%clk
0:02:39.2]} 8... Ng6 {[%clk 0:02:30.6]} 9. Be3 {[%clk 0:02:39.3]} 9... Bd6
{[%clk 0:02:27.3]} 10. f4 {[%clk 0:02:39.4]} 10... Bc5 {[%clk 0:02:19.5]} 11.
Nf5 {[%clk 0:02:10.7]} 11... Bxe3+ {[%clk 0:02:18.4]} 12. Nxe3 {[%clk
0:02:10.7]} 12... Qe7 {[%clk 0:02:10.3]} 13. Qf3 {[%clk 0:02:08.6]} 13... O-O
{[%clk 0:02:07.5]} 14. Kh1 {[%clk 0:02:04.4]} 14... Bd7 {[%clk 0:02:00]} 15.
Rfe1 {[%clk 0:02:03.1]} 15... Rae8 {[%clk 0:01:56.2]} 16. Rad1 {[%clk
0:02:00.1]} 16... Be6 {[%clk 0:01:42.5]} 17. a3 {[%clk 0:01:58.9]} 17... Qc5
{[%clk 0:01:34.1]} 18. Qf2 {[%clk 0:01:51.1]} 18... Bc8 {[%clk 0:01:18.8]} 19.
Re2 {[%clk 0:01:29]} 19... Qh5 {[%clk 0:01:04.9]} 20. Rde1 {[%clk 0:01:14]}
20... Qh6 {[%clk 0:00:59.6]} 21. Rf1 {[%clk 0:01:03.2]} 21... Rd8 {[%clk
0:00:53.5]} 22. Nf5 {[%clk 0:00:48.9]} 22... Qh5 {[%clk 0:00:48.5]} 23. Ng3
{[%clk 0:00:46.2]} 23... Qg4 {[%clk 0:00:42.2]} 24. h3 {[%clk 0:00:45.3]} 24...
Qh4 {[%clk 0:00:41.9]} 25. Nf5 {[%clk 0:00:40.8]} 25... Bxf5 {[%clk 0:00:26.6]}
26. exf5 {[%clk 0:00:40.4]} 26... Qxf2 {[%clk 0:00:26.4]} 27. Rfxf2 {[%clk
0:00:39.9]} 27... Nh4 {[%clk 0:00:25.4]} 28. g4 {[%clk 0:00:36.9]} 28... h5
{[%clk 0:00:23.9]} 29. Kh2 {[%clk 0:00:29.3]} 29... g5 {[%clk 0:00:18]} 30. fxg6
{[%clk 0:00:21.9]} 30... Nxg6 {[%clk 0:00:16.9]} 31. Kg3 {[%clk 0:00:21.2]}
31... h4+ {[%clk 0:00:15.1]} 32. Kf3 {[%clk 0:00:16.9]} 32... f5 {[%clk
0:00:15.5]} 33. g5 {[%clk 0:00:16.5]} 33... Rfe8 {[%clk 0:00:15.4]} 34. Rxe8+
{[%clk 0:00:15.4]} 34... Rxe8 {[%clk 0:00:15.9]} 35. Rd2 {[%clk 0:00:12.5]}
35... Rd8 {[%clk 0:00:16.5]} 36. Rxd8+ {[%clk 0:00:11.5]} 1-0

[Event "Early-Titled-Tuesday-Blitz-March-05-2024"]
[Site "Chess.com"]
[Date "2024.03.05"]
[Round "4"]
[White "Yushko_Olga"]
[Black "marik_spb"]
[Result "0-1"]
[WhiteElo "2203"]
[BlackElo "2458"]
[TimeControl "180+1"]
[EndTime "8:41:51 PST"]
[Termination "marik_spb won by resignation"]

1. d4 {[%clk 0:02:58.6]} 1... Nf6 {[%clk 0:02:56.8]} 2. c4 {[%clk 0:02:59.4]}
2... e6 {[%clk 0:02:56.7]} 3. Nc3 {[%clk 0:02:59.5]} 3... Bb4 {[%clk 0:02:54.8]}
4. Bd2 {[%clk 0:02:59.5]} 4... O-O {[%clk 0:02:54.2]} 5. Nf3 {[%clk 0:02:58.8]}
5... d5 {[%clk 0:02:53.4]} 6. cxd5 {[%clk 0:02:57.1]} 6... exd5 {[%clk
0:02:51.1]} 7. e3 {[%clk 0:02:56.8]} 7... Bf5 {[%clk 0:02:45.5]} 8. Be2 {[%clk
0:02:52.8]} 8... Nbd7 {[%clk 0:02:41.5]} 9. O-O {[%clk 0:02:51.5]} 9... c6
{[%clk 0:02:41.2]} 10. Qb3 {[%clk 0:02:48]} 10... a5 {[%clk 0:02:20.9]} 11. a3
{[%clk 0:02:47]} 11... Bxc3 {[%clk 0:01:27.4]} 12. bxc3 {[%clk 0:02:45.9]} 12...
Qc7 {[%clk 0:01:26.2]} 13. c4 {[%clk 0:02:33.4]} 13... dxc4 {[%clk 0:01:25.6]}
14. Bxc4 {[%clk 0:02:33.1]} 14... b5 {[%clk 0:01:25.1]} 15. Bd3 {[%clk
0:02:30.4]} 15... Bxd3 {[%clk 0:01:24.5]} 16. Qxd3 {[%clk 0:02:31.3]} 16... Qd6
{[%clk 0:01:19]} 17. Qc2 {[%clk 0:02:24.1]} 17... c5 {[%clk 0:01:11.2]} 18. dxc5
{[%clk 0:02:23.4]} 18... Qxc5 {[%clk 0:01:09.1]} 19. Qxc5 {[%clk 0:02:19.1]}
19... Nxc5 {[%clk 0:01:10]} 20. Rab1 {[%clk 0:02:19]} 20... Rfb8 {[%clk
0:01:06.8]} 21. Rfc1 {[%clk 0:02:17.9]} 21... Nfe4 {[%clk 0:01:07.1]} 22. Be1
{[%clk 0:02:10.4]} 22... h6 {[%clk 0:00:57.3]} 23. Nd4 {[%clk 0:02:10.2]} 23...
Nd3 {[%clk 0:00:55.4]} 24. Rd1 {[%clk 0:01:35.2]} 24... Nxe1 {[%clk 0:00:38.1]}
25. Rxe1 {[%clk 0:01:36.1]} 25... b4 {[%clk 0:00:38.4]} 26. axb4 {[%clk
0:01:32.2]} 26... Rxb4 {[%clk 0:00:38.5]} 27. Rxb4 {[%clk 0:01:20.7]} 27... axb4
{[%clk 0:00:39.4]} 28. f3 {[%clk 0:01:18.4]} 28... Nc3 {[%clk 0:00:37.6]} 29.
Rc1 {[%clk 0:01:13.2]} 29... Rc8 {[%clk 0:00:32.6]} 30. Rc2 {[%clk 0:01:10.1]}
30... Kf8 {[%clk 0:00:31.1]} 31. Rb2 {[%clk 0:01:09.6]} 31... Rc4 {[%clk
0:00:25.7]} 32. Kf1 {[%clk 0:00:59]} 32... Nd5 {[%clk 0:00:25]} 33. Ke2 {[%clk
0:00:54.9]} 33... Rc3 {[%clk 0:00:10.5]} 34. e4 {[%clk 0:00:35]} 34... Nf4+
{[%clk 0:00:10.5]} 35. Kf1 {[%clk 0:00:35.1]} 35... Rc1+ {[%clk 0:00:10.6]} 36.
Kf2 {[%clk 0:00:33.1]} 36... Nd3+ {[%clk 0:00:11.3]} 0-1

[Event "Early-Titled-Tuesday-Blitz-March-05-2024"]
[Site "Chess.com"]
[Date "2024.03.05"]
[Round "4"]
[White "wonderfultime"]
[Black "Byniolus"]
[Result "1-0"]
[WhiteElo "3033"]
[BlackElo "2816"]
[TimeControl "180+1"]
[EndTime "8:41:52 PST"]
[Termination "wonderfultime won on time"]

1. d4 {[%clk 0:02:56.9]} 1... d6 {[%clk 0:02:56.9]} 2. e4 {[%clk 0:02:53.5]}
2... Nf6 {[%clk 0:02:56.9]} 3. Nc3 {[%clk 0:02:53.9]} 3... c6 {[%clk 0:02:57.1]}
4. h3 {[%clk 0:02:46.5]} 4... b5 {[%clk 0:02:56.6]} 5. Bd3 {[%clk 0:02:43.8]}
5... e5 {[%clk 0:02:55.1]} 6. Nf3 {[%clk 0:02:40.3]} 6... Nbd7 {[%clk
0:02:54.8]} 7. O-O {[%clk 0:02:35.8]} 7... Be7 {[%clk 0:02:54.8]} 8. Ne2 {[%clk
0:02:35.8]} 8... O-O {[%clk 0:02:54.7]} 9. c3 {[%clk 0:02:35.7]} 9... Re8 {[%clk
0:02:54.7]} 10. Ng3 {[%clk 0:02:35.5]} 10... Bf8 {[%clk 0:02:49.7]} 11. Re1
{[%clk 0:02:35.6]} 11... a6 {[%clk 0:02:46.1]} 12. Bc2 {[%clk 0:02:27.6]} 12...
c5 {[%clk 0:02:39]} 13. Bg5 {[%clk 0:02:21.1]} 13... cxd4 {[%clk 0:02:33.9]} 14.
cxd4 {[%clk 0:02:20.8]} 14... Bb7 {[%clk 0:02:33.5]} 15. Bb3 {[%clk 0:01:54.5]}
15... h6 {[%clk 0:02:31.9]} 16. Bxf6 {[%clk 0:01:31.3]} 16... Nxf6 {[%clk
0:02:01.2]} 17. Rc1 {[%clk 0:01:30]} 17... Rc8 {[%clk 0:01:53.6]} 18. dxe5
{[%clk 0:01:17.2]} 18... Rxc1 {[%clk 0:01:44.9]} 19. Qxc1 {[%clk 0:01:16.8]}
19... dxe5 {[%clk 0:01:45.3]} 20. Qc3 {[%clk 0:01:10.2]} 20... Qb8 {[%clk
0:01:17.6]} 21. Nh4 {[%clk 0:01:02.9]} 21... Qc8 {[%clk 0:01:06]} 22. Qf3 {[%clk
0:01:01.8]} 22... a5 {[%clk 0:00:40.6]} 23. a3 {[%clk 0:00:58.7]} 23... a4
{[%clk 0:00:38.5]} 24. Ba2 {[%clk 0:00:59.4]} 24... Qc2 {[%clk 0:00:36.2]} 25.
Re2 {[%clk 0:00:56.7]} 25... Qc1+ {[%clk 0:00:22.4]} 26. Kh2 {[%clk 0:00:57]}
26... Qa1 {[%clk 0:00:22.2]} 27. b4 {[%clk 0:00:55.3]} 27... Rc8 {[%clk
0:00:19.3]} 28. Nhf5 {[%clk 0:00:50.5]} 28... Rc6 {[%clk 0:00:10.4]} 29. Qd3
{[%clk 0:00:41.5]} 29... Qc3 {[%clk 0:00:08.5]} 30. Qd8 {[%clk 0:00:42]} 30...
Rc7 {[%clk 0:00:06.1]} 31. Nxh6+ {[%clk 0:00:40.4]} 31... gxh6 {[%clk
0:00:04.9]} 32. Qxf6 {[%clk 0:00:41.1]} 32... Qxa3 {[%clk 0:00:04.9]} 33. Nf5
{[%clk 0:00:25.5]} 33... Qxb4 {[%clk 0:00:04.7]} 34. Re3 {[%clk 0:00:22.8]}
34... Kh7 {[%clk 0:00:01.3]} 35. Bxf7 {[%clk 0:00:21]} 1-0

[Event "Early-Titled-Tuesday-Blitz-March-05-2024"]
[Site "Chess.com"]
[Date "2024.03.05"]
[Round "4"]
[White "jaskol95"]
[Black "eagleclaw07"]
[Result "1-0"]
[WhiteElo "2596"]
[BlackElo "2840"]
[TimeControl "180+1"]
[EndTime "8:41:52 PST"]
[Termination "jaskol95 won by checkmate"]

1. e4 {[%clk 0:03:00.9]} 1... c6 {[%clk 0:03:00.4]} 2. d4 {[%clk 0:02:53.7]}
2... d5 {[%clk 0:03:01.3]} 3. e5 {[%clk 0:02:54.1]} 3... Bf5 {[%clk 0:02:59.9]}
4. Nd2 {[%clk 0:02:54.5]} 4... e6 {[%clk 0:02:59.6]} 5. Nb3 {[%clk 0:02:54.9]}
5... Nd7 {[%clk 0:02:59.5]} 6. Nf3 {[%clk 0:02:50.3]} 6... a6 {[%clk 0:02:53.9]}
7. Be3 {[%clk 0:02:50.3]} 7... h6 {[%clk 0:02:50.2]} 8. h3 {[%clk 0:02:47.7]}
8... g5 {[%clk 0:02:49.6]} 9. g4 {[%clk 0:02:47.5]} 9... Be4 {[%clk 0:02:49.4]}
10. Bd3 {[%clk 0:02:41.4]} 10... Bxd3 {[%clk 0:02:45.8]} 11. Qxd3 {[%clk
0:02:41.4]} 11... Bg7 {[%clk 0:02:45.4]} 12. O-O-O {[%clk 0:02:40.2]} 12... Ne7
{[%clk 0:02:45]} 13. h4 {[%clk 0:02:39.4]} 13... gxh4 {[%clk 0:02:44.9]} 14.
Rxh4 {[%clk 0:02:33.4]} 14... Qc7 {[%clk 0:02:41.8]} 15. Rdh1 {[%clk 0:02:17.8]}
15... O-O-O {[%clk 0:02:36.3]} 16. Bxh6 {[%clk 0:02:11.1]} 16... Bxh6+ {[%clk
0:02:36.4]} 17. Rxh6 {[%clk 0:02:11.5]} 17... Rhg8 {[%clk 0:02:33.5]} 18. Rh7
{[%clk 0:01:51.9]} 18... Rdf8 {[%clk 0:02:27.4]} 19. Rg1 {[%clk 0:01:46.6]}
19... Ng6 {[%clk 0:02:25.9]} 20. Qe3 {[%clk 0:01:42.2]} 20... Qd8 {[%clk
0:02:22.1]} 21. c3 {[%clk 0:01:35.4]} 21... Rh8 {[%clk 0:02:09.7]} 22. Rgh1
{[%clk 0:01:30]} 22... Rhg8 {[%clk 0:01:51.8]} 23. Nh4 {[%clk 0:00:41.9]} 23...
Qe7 {[%clk 0:01:16.7]} 24. Nxg6 {[%clk 0:00:40.2]} 24... Rxg6 {[%clk 0:01:17.6]}
25. f3 {[%clk 0:00:31.6]} 25... Rfg8 {[%clk 0:01:10.8]} 26. Qd3 {[%clk
0:00:31.2]} 26... Qe8 {[%clk 0:01:05.7]} 27. Nd2 {[%clk 0:00:25.8]} 27... f6
{[%clk 0:01:03.5]} 28. exf6 {[%clk 0:00:18.5]} 28... Rxf6 {[%clk 0:01:02.2]} 29.
Nf1 {[%clk 0:00:15.2]} 29... Rgf8 {[%clk 0:01:01.7]} 30. Nd2 {[%clk 0:00:14.1]}
30... e5 {[%clk 0:00:58.6]} 31. dxe5 {[%clk 0:00:12.9]} 31... Nxe5 {[%clk
0:00:58.8]} 32. Qe3 {[%clk 0:00:12.2]} 32... Re6 {[%clk 0:00:55.3]} 33. Qa7
{[%clk 0:00:11.2]} 33... Nd7 {[%clk 0:00:42.8]} 34. Rxd7 {[%clk 0:00:11.2]}
34... Kxd7 {[%clk 0:00:38.8]} 35. Qxb7+ {[%clk 0:00:11.6]} 35... Kd6 {[%clk
0:00:39.4]} 36. Rd1 {[%clk 0:00:09.6]} 36... Re1 {[%clk 0:00:27.4]} 37. Nc4+
{[%clk 0:00:08.8]} 37... Kc5 {[%clk 0:00:16.4]} 38. Qb4# {[%clk 0:00:08.5]} 1-0

[Event "Early-Titled-Tuesday-Blitz-March-05-2024"]
[Site "Chess.com"]
[Date "2024.03.05"]
[Round "4"]
[White "Rodalquilar"]
[Black "Coach_Istvanovszki"]
[Result "1-0"]
[WhiteElo "2807"]
[BlackElo "2446"]
[TimeControl "180+1"]
[EndTime "8:41:53 PST"]
[Termination "Rodalquilar won by resignation"]

1. d4 {[%clk 0:03:00.9]} 1... g6 {[%clk 0:02:59]} 2. e4 {[%clk 0:03:00.6]} 2...
Bg7 {[%clk 0:02:58.7]} 3. Nc3 {[%clk 0:03:01]} 3... d6 {[%clk 0:02:58.2]} 4. Nf3
{[%clk 0:03:01]} 4... a6 {[%clk 0:02:57.6]} 5. a4 {[%clk 0:03:01.2]} 5... Nc6
{[%clk 0:02:57.9]} 6. h3 {[%clk 0:02:59.7]} 6... Nf6 {[%clk 0:02:52.1]} 7. Be2
{[%clk 0:02:56]} 7... O-O {[%clk 0:02:52.1]} 8. O-O {[%clk 0:02:56.3]} 8... e5
{[%clk 0:02:52.8]} 9. dxe5 {[%clk 0:02:56]} 9... dxe5 {[%clk 0:02:51.2]} 10. Be3
{[%clk 0:02:55.7]} 10... Qe7 {[%clk 0:02:39.7]} 11. Nd5 {[%clk 0:01:39.7]} 11...
Nxd5 {[%clk 0:02:39.4]} 12. exd5 {[%clk 0:01:40.6]} 12... Nd4 {[%clk 0:02:37.4]}
13. Nxd4 {[%clk 0:01:31.6]} 13... exd4 {[%clk 0:02:38.3]} 14. Bf4 {[%clk
0:01:32.1]} 14... Bf5 {[%clk 0:02:19.7]} 15. Re1 {[%clk 0:01:14.7]} 15... Qc5
{[%clk 0:02:07.2]} 16. Bd3 {[%clk 0:01:15]} 16... Qxd5 {[%clk 0:02:03.1]} 17.
Bxc7 {[%clk 0:01:10.8]} 17... Rac8 {[%clk 0:02:01.1]} 18. Bf4 {[%clk 0:01:06.5]}
18... Rfe8 {[%clk 0:01:50.7]} 19. Qd2 {[%clk 0:01:04]} 19... Re6 {[%clk
0:01:41.6]} 20. Rxe6 {[%clk 0:01:03.3]} 20... Bxe6 {[%clk 0:01:40.8]} 21. a5
{[%clk 0:01:02.1]} 21... h5 {[%clk 0:01:35.1]} 22. Re1 {[%clk 0:00:57.6]} 22...
Rc5 {[%clk 0:01:27.7]} 23. b4 {[%clk 0:00:46.8]} 23... Rc3 {[%clk 0:01:23.9]}
24. Be4 {[%clk 0:00:47.2]} 24... Qd7 {[%clk 0:01:19.8]} 25. Rd1 {[%clk
0:00:38.8]} 25... Bf5 {[%clk 0:01:03.9]} 26. Qxc3 {[%clk 0:00:33.4]} 26... Bxe4
{[%clk 0:00:56.6]} 27. Qc5 {[%clk 0:00:23.1]} 27... Qc6 {[%clk 0:00:33.3]} 28.
Qxc6 {[%clk 0:00:23]} 28... bxc6 {[%clk 0:00:34.2]} 29. Rd2 {[%clk 0:00:23.5]}
29... Kf8 {[%clk 0:00:21.8]} 30. Bd6+ {[%clk 0:00:23.7]} 30... Ke8 {[%clk
0:00:22.2]} 31. Bc5 {[%clk 0:00:24.6]} 31... Bh6 {[%clk 0:00:20.8]} 32. Re2
{[%clk 0:00:21.6]} 32... f5 {[%clk 0:00:18.3]} 33. f3 {[%clk 0:00:21.8]} 33...
Be3+ {[%clk 0:00:18.1]} 34. Rxe3 {[%clk 0:00:22.5]} 34... dxe3 {[%clk
0:00:18.4]} 35. fxe4 {[%clk 0:00:23.1]} 35... f4 {[%clk 0:00:18.9]} 36. h4
{[%clk 0:00:21.4]} 36... Kd7 {[%clk 0:00:19.3]} 37. g3 {[%clk 0:00:19.4]} 37...
e2 {[%clk 0:00:16.6]} 38. Kf2 {[%clk 0:00:17.3]} 38... f3 {[%clk 0:00:17]} 39.
Bd4 {[%clk 0:00:15.9]} 39... Ke6 {[%clk 0:00:17.4]} 40. Bc3 {[%clk 0:00:16.1]}
40... c5 {[%clk 0:00:16.9]} 41. bxc5 {[%clk 0:00:15.8]} 1-0